bitfinex/quotes_ETHUSD_20250813
["timestamp","ask_amount","ask_price","bid_price","bid_amount"]
[1755109002142,0.002,4733.1,4733.0,9.9378]
[1755109002344,0.002,4733.1,4733.0,7.694]
[1755109002543,0.6576,4733.1,4733.0,10.991]
[1755109002744,0.6576,4733.1,4733.0,7.694]
[1755109002949,0.6576,4733.1,4733.0,10.991]
[1755109003413,2.86415568,4733.1,4733.0,10.991]
[1755109004820,0.6576,4733.1,4733.0,10.991]
[1755109005239,0.6576,4733.1,4733.0,13.1104]
[1755109005626,0.1076,4733.1,4733.0,10.4784]
[1755109005951,0.002,4733.1,4733.0,10.4784]
[1755109006344,0.002,4733.1,4733.0,7.1814]
[1755109006550,0.002,4733.1,4733.0,10.4784]
[1755109008254,0.002,4733.1,4733.0,7.1814]
[1755109008460,0.002,4733.1,4733.0,8.359]
[1755109009058,0.002,4733.1,4733.0,5.062]
[1755109009224,0.002,4733.1,4733.0,8.359]
[1755109009553,0.552,4733.1,4733.0,8.359]
[1755109009957,0.552,4733.1,4733.0,5.062]
[1755109010156,0.552,4733.1,4733.0,8.359]
[1755109010523,0.5298346,4733.1,4733.0,8.359]
[1755109011480,0.5298346,4733.1,4733.0,10.991]
[1755109011760,0.5298346,4733.1,4733.0,7.694]
[1755109011929,2.76280003,4733.1,4733.0,7.694]
[1755109012266,2.73639028,4733.1,4733.0,10.991]
[1755109012422,0.1056,4733.1,4733.0,10.991]
[1755109012758,24.13795816,4733.1,4733.0,7.694]
[1755109012961,26.42975816,4733.1,4733.0,7.694]
[1755109013124,26.42975816,4733.1,4733.0,10.991]
[1755109014519,0.6576,4733.1,4733.0,10.991]
[1755109017507,1.0919,4733.1,4733.0,10.991]
[1755109017676,1.23014061,4733.1,4733.0,10.991]
[1755109017866,1.20373086,4733.1,4733.0,10.991]
[1755109018068,0.76943086,4733.1,4733.0,10.991]
[1755109020437,24.39189877,4733.1,4733.0,2.632]
[1755109020726,5.771,4733.0,4732.0,0.001]
[1755109020930,3.55,4732.0,4731.6,2.633]
[1755109021099,0.02641645,4731.9,4731.7,5.062]
[1755109021300,0.6556,4731.7,4731.6,0.001]
[1755109021500,0.6556,4731.7,4730.4,0.001]
[1755109021501,0.55,4731.6,4731.3,5.062]
[1755109021735,3.55,4731.3,4730.4,0.001]
[1755109022026,3.55,4731.1,4730.7,5.062]
[1755109022230,0.02642147,4731.0,4730.7,8.359]
[1755109022403,0.55,4730.9,4730.8,5.063]
[1755109022598,2.96522535,4730.9,4730.8,5.063]
[1755109022799,20.57082535,4730.9,4730.8,5.063]
[1755109023025,22.62790789,4730.9,4730.8,5.063]
[1755109023211,46.22396605,4730.9,4730.8,5.063]
[1755109023726,0.55,4730.7,4730.4,0.001]
[1755109023923,0.57642315,4730.7,4730.4,0.001]
[1755109024129,5.83202315,4730.7,4730.4,0.001]
[1755109024299,7.48890786,4730.7,4730.4,0.001]
[1755109025190,7.48890786,4730.7,4730.6,2.223]
[1755109025922,0.55,4730.5,4730.4,0.001]
[1755109026089,0.02642426,4730.5,4730.1,0.021]
[1755109026294,27.25165816,4730.2,4730.1,0.021]
[1755109026492,29.50725816,4730.2,4730.1,2.237]
[1755109026730,3.55,4730.1,4729.9,0.001]
[1755109026896,0.02642706,4730.0,4729.9,0.001]
[1755109027232,5.83202706,4730.0,4729.9,0.001]
[1755109027429,7.55131333,4730.0,4729.9,0.001]
[1755109027603,22.05131333,4730.0,4729.9,0.001]
[1755109028301,22.05131333,4730.0,4729.9,1.952]
[1755109028503,3.55,4729.9,4729.1,0.02]
[1755109028814,27.25165816,4729.2,4729.1,0.02]
[1755109030025,27.71865816,4729.2,4729.1,0.02]
[1755109030325,3.55,4729.1,4727.0,1.6897]
[1755109030632,3.55,4729.1,4729.0,1.857]
[1755109030797,19.75973995,4729.1,4729.0,1.857]
[1755109030992,19.73330786,4729.1,4729.0,1.857]
[1755109031622,19.73330786,4729.1,4729.0,6.922]
[1755109032226,43.43496602,4729.1,4729.0,6.922]
[1755109032427,19.28890786,4729.1,4729.0,7.3964]
[1755109032735,1.78890786,4729.1,4729.0,9.0861]
[1755109032896,3.1056,4729.1,4729.0,5.065]
[1755109033095,20.43763209,4729.1,4729.0,5.065]
[1755109033321,3.6556,4729.1,4729.0,5.065]
[1755109033728,3.68203209,4729.1,4729.0,5.065]
[1755109033937,5.86215568,4729.1,4729.0,5.065]
[1755109034158,5.31215568,4729.1,4729.0,5.065]
[1755109034365,5.86215568,4729.1,4729.0,5.065]
[1755109034831,5.86215568,4729.1,4729.0,8.364]
[1755109035164,0.55,4729.0,4728.1,0.02]
[1755109035367,1.79513872,4728.9,4728.2,8.365]
[1755109035654,0.02643376,4728.8,4728.3,2.1641]
[1755109035824,3.02643376,4728.8,4728.4,2.1641]
[1755109036025,3.02643376,4728.8,4728.2,8.365]
[1755109036254,23.59605816,4729.7,4728.5,2.1641]
[1755109036452,0.1056,4728.6,4728.5,2.1641]
[1755109036655,0.1056,4728.6,4728.5,1.6897]
[1755109037256,0.6556,4728.6,4728.5,2.1641]
[1755109037834,0.55,4728.5,4728.2,5.066]
[1755109038058,0.57643544,4728.5,4728.3,5.4631]
[1755109038262,0.57643264,4729.0,4728.3,5.4631]
[1755109038463,0.02643264,4729.0,4728.4,2.1641]
[1755109038663,0.1056,4728.5,4728.3,3.299]
[1755109039263,0.55,4728.4,4728.3,3.299]
[1755109039862,0.02642762,4729.9,4728.3,5.4631]
[1755109040062,0.1056,4728.9,4728.4,2.1641]
[1755109040232,0.55,4728.8,4728.5,2.1641]
[1755109040427,0.55,4728.8,4728.6,0.4744]
[1755109040634,0.55,4728.8,4728.6,2.1641]
[1755109040933,0.1056,4728.9,4728.7,2.1641]
[1755109041261,0.1056,4729.3,4728.7,2.81601]
[1755109041570,0.55,4729.2,4728.8,4.7981]
[1755109041863,0.55,4729.2,4728.9,2.1641]
[1755109042380,0.55,4729.2,4729.0,5.4631]
[1755109042669,14.65771951,4731.1,4729.1,2.1641]
[1755109042866,0.1056,4730.3,4729.7,0.1056]
[1755109043029,23.59605816,4732.2,4729.8,5.4631]
[1755109043229,0.1056,4730.6,4730.0,0.1056]
[1755109043468,0.55,4730.2,4730.1,5.4631]
[1755109043868,0.55,4730.2,4730.1,3.299]
[1755109044366,0.57642594,4730.2,4729.6,0.4744]
[1755109044541,0.55,4729.7,4729.0,2.1641]
[1755109044728,23.59605816,4729.8,4729.0,2.1641]
[1755109044729,0.55,4729.5,4729.1,3.299]
[1755109044930,0.55,4729.5,4729.1,3.7734]
[1755109045129,0.6556,4729.2,4729.1,2.1641]
[1755109045367,0.6556,4729.2,4729.1,5.4631]
[1755109046571,23.7576494,4731.5,4729.1,5.4631]
[1755109046780,0.1056,4730.0,4729.2,2.97381]
[1755109046934,0.55,4729.9,4729.5,0.1056]
[1755109047264,0.55,4729.9,4729.6,2.1641]
[1755109047439,0.467,4732.2,4729.7,5.4631]
[1755109047634,0.0264198,4731.3,4729.8,2.1641]
[1755109047862,0.0264198,4731.3,4729.7,3.299]
[1755109048065,0.0264198,4731.3,4729.9,2.1641]
[1755109048267,0.55,4730.3,4729.9,2.1641]
[1755109048450,0.1056,4730.6,4730.0,2.2697]
[1755109048652,0.1056,4730.6,4730.1,2.1641]
[1755109049152,0.1056,4730.6,4730.0,0.1056]
[1755109049356,0.57642426,4730.5,4730.2,2.1641]
[1755109049561,0.55,4730.5,4730.3,2.1641]
[1755109049875,3.55,4730.8,4730.4,8.364]
[1755109050177,0.55,4730.6,4730.5,3.298]
[1755109050674,0.6556,4730.6,4730.5,3.7295]
[1755109050875,0.6556,4730.6,4730.5,5.3645]
[1755109051031,0.6556,4730.6,4730.5,3.298]
[1755109051668,0.6556,4730.6,4730.5,5.3645]
[1755109051977,0.1056,4730.6,4730.5,5.3645]
[1755109054374,0.02,4731.4,4730.5,5.3645]
[1755109054554,0.55,4731.1,4730.5,4.44665]
[1755109054868,0.1056,4731.2,4730.6,2.0665]
[1755109055272,0.55,4731.1,4730.7,2.0665]
[1755109055567,0.1056,4731.2,4730.8,2.0665]
[1755109055769,0.02,4731.4,4730.9,3.298]
[1755109056069,0.002,4731.1,4730.9,5.3645]
[1755109056279,0.002,4731.1,4731.0,2.0665]
[1755109056687,0.002,4731.1,4730.8,0.1056]
[1755109056853,0.002,4731.1,4731.0,3.298]
[1755109057193,3.55,4731.0,4730.4,5.066]
[1755109057373,0.6556,4730.5,4730.4,5.066]
[1755109057572,0.6556,4730.5,4730.4,8.364]
[1755109059258,0.6556,4730.5,4730.4,5.066]
[1755109059458,2.8588,4730.5,4730.4,8.364]
[1755109059792,0.9441222,4730.5,4730.4,8.364]
[1755109060083,0.6556,4730.5,4730.4,8.364]
[1755109060485,0.6556,4730.5,4730.4,10.4305]
[1755109061795,0.6556,4730.5,4730.4,8.364]
[1755109064386,0.6556,4730.5,4730.4,10.4305]
[1755109064774,0.1056,4730.5,4730.4,13.0635]
[1755109065108,0.1056,4730.9,4730.4,13.0635]
[1755109065285,0.1056,4730.9,4730.5,2.0665]
[1755109065601,0.002,4731.1,4730.5,2.0665]
[1755109065602,0.002,4731.1,4730.6,3.298]
[1755109065965,0.002,4731.1,4730.7,2.0665]
[1755109066171,0.002,4731.1,4730.8,3.298]
[1755109066467,0.002,4731.1,4730.8,6.68141]
[1755109066670,0.002,4731.1,4731.0,0.1056]
[1755109067006,0.002,4731.1,4731.0,3.4036]
[1755109067202,0.002,4731.1,4731.0,5.4701]
[1755109069195,0.002,4731.1,4731.0,5.4691]
[1755109071492,0.002,4731.1,4731.0,13.1661]
[1755109074304,0.002,4731.1,4731.0,9.4376]
[1755109074615,0.66684198,4731.1,4731.0,12.629]
[1755109075356,0.66684198,4731.1,4731.0,12.628]
[1755109075678,0.66684198,4731.1,4731.0,10.993]
[1755109075884,0.88414198,4731.1,4731.0,10.993]
[1755109076818,0.66684198,4731.1,4731.0,10.993]
[1755109077181,0.6576,4731.1,4731.0,10.993]
[1755109077381,0.6576,4731.1,4731.0,8.1285]
[1755109077608,0.6576,4731.1,4731.0,11.4245]
[1755109078020,0.6576,4731.1,4731.0,10.993]
[1755109078694,0.552,4731.1,4731.0,11.4245]
[1755109079287,0.552,4731.1,4731.0,10.993]
[1755109080427,0.552,4731.1,4731.0,11.4668]
[1755109080610,0.552,4731.1,4731.0,10.993]
[1755109085996,0.552,4731.1,4731.0,7.697]
[1755109086328,0.552,4731.1,4731.0,10.993]
[1755109086717,0.552,4731.1,4731.0,11.4668]
[1755109087017,0.002,4731.1,4731.0,11.5724]
[1755109087218,0.002,4731.1,4731.0,12.72964]
[1755109087600,0.002,4731.1,4731.0,10.09664]
[1755109091118,0.002,4731.1,4731.0,13.09664]
[1755109091634,0.002,4731.1,4731.0,15.72964]
[1755109093031,0.002,4731.1,4731.0,14.0976]
[1755109093232,0.002,4731.1,4731.0,11.0976]
[1755109094127,0.002,4731.1,4731.0,11.5714]
[1755109094925,0.002,4731.1,4731.0,11.0976]
[1755109097804,0.002,4731.1,4731.0,10.992]
[1755109099735,1.09265,4731.1,4731.0,7.697]
[1755109099899,1.19825,4731.1,4731.0,10.992]
[1755109100101,1.19825,4731.1,4731.0,7.697]
[1755109100301,1.19825,4731.1,4731.0,10.992]
[1755109101922,0.66275,4731.1,4731.0,10.992]
[1755109102113,0.552,4731.1,4731.0,10.992]
[1755109104507,0.552,4731.1,4731.0,7.697]
[1755109104805,0.552,4731.1,4731.0,10.991]
[1755109104806,1.00832091,4731.1,4731.0,10.991]
[1755109105006,1.00832091,4731.1,4729.3,2.633]
[1755109105007,0.55,4731.0,4729.3,2.633]
[1755109105206,0.55,4729.5,4729.4,5.063]
[1755109105402,0.55,4729.5,4729.4,8.357]
[1755109105647,0.55,4729.5,4729.4,5.063]
[1755109105843,0.55,4729.5,4729.4,8.357]
[1755109106120,0.55,4729.5,4729.4,8.8308]
[1755109106339,0.55,4729.5,4729.4,8.357]
[1755109108139,0.55,4729.5,4729.4,5.063]
[1755109108306,0.55,4729.5,4729.4,8.357]
[1755109108509,0.9799,4729.5,4729.4,8.357]
[1755109108806,2.75655568,4729.5,4729.4,8.357]
[1755109109010,0.55,4729.5,4729.4,8.358]
[1755109109480,0.55,4729.6,4729.4,5.5378]
[1755109109783,0.55,4729.6,4729.5,3.294]
[1755109109983,0.55,4729.6,4729.5,3.295]
[1755109111450,0.55,4729.6,4729.4,7.697]
[1755109111783,0.55,4729.6,4729.5,3.295]
[1755109113773,0.55,4729.6,4729.4,7.697]
[1755109114173,0.11189,4729.5,4729.4,7.697]
[1755109114485,0.11189,4729.5,4729.4,10.993]
[1755109115357,0.66189,4729.5,4729.4,2.633]
[1755109115558,0.66189,4729.5,4729.4,10.993]
[1755109116691,0.66189,4729.5,4729.4,7.698]
[1755109116892,1.12519,4729.5,4729.4,10.993]
[1755109117194,1.12519,4729.5,4729.4,10.992]
[1755109117695,0.55,4729.4,4728.8,0.001]
[1755109117858,24.144243,4729.0,4728.9,8.359]
[1755109118062,24.607543,4729.0,4728.9,8.359]
[1755109119463,24.607543,4729.0,4728.9,5.065]
[1755109119675,24.607543,4729.0,4728.9,8.36]
[1755109120064,27.607543,4729.0,4728.9,8.36]
[1755109120275,29.81409868,4729.0,4728.9,5.065]
[1755109120569,29.81409868,4729.0,4728.9,8.359]
[1755109121998,44.31409868,4729.0,4728.9,8.359]
[1755109122970,44.31409868,4729.0,4728.4,0.001]
[1755109122971,3.55,4728.9,4728.4,0.001]
[1755109123271,0.02643376,4728.8,4728.5,8.361]
[1755109123471,0.55,4728.6,4728.5,5.066]
[1755109123801,0.55,4728.6,4728.4,0.001]
[1755109123802,0.55,4728.4,4728.1,0.021]
[1755109124008,27.144243,4728.2,4728.1,0.021]
[1755109124622,5.772,4728.1,4725.5,0.001]
[1755109124929,24.144243,4726.2,4725.5,0.001]
[1755109125134,27.144243,4726.2,4725.5,0.001]
[1755109125311,27.144243,4725.6,4725.5,0.001]
[1755109125933,27.144243,4725.6,4725.5,2.147]
[1755109127723,27.249843,4725.6,4725.5,2.147]
[1755109127964,29.45639868,4725.6,4725.5,2.147]
[1755109128484,29.91969868,4725.6,4725.5,2.147]
[1755109128688,29.91969868,4725.6,4725.5,0.001]
[1755109128985,29.91969868,4725.6,4725.5,0.592]
[1755109129187,30.07955059,4725.6,4725.5,0.001]
[1755109129386,30.07955059,4725.6,4725.5,0.592]
[1755109129692,30.07955059,4725.6,4725.3,0.001]
[1755109129693,0.55,4725.5,4725.3,0.001]
[1755109129914,2.22211836,4725.4,4725.3,0.001]
[1755109130590,16.72211836,4725.4,4725.3,0.001]
[1755109130790,16.69566558,4725.4,4725.3,0.681]
[1755109131294,16.69566558,4725.4,4725.3,0.001]
[1755109131519,16.69566558,4725.4,4725.3,6.396]
[1755109132094,2.30126558,4725.4,4725.3,6.8487]
[1755109132300,0.13205278,4725.4,4725.3,5.069]
[1755109132523,18.07645278,4725.4,4725.3,8.365]
[1755109132833,18.05,4725.4,4725.3,8.365]
[1755109134253,18.05,4725.4,4724.2,2.635]
[1755109134254,0.55,4725.2,4724.2,2.635]
[1755109134539,2.78300958,4725.2,4725.1,8.386]
[1755109134733,2.75655568,4725.2,4725.1,8.386]
[1755109134933,23.594243,4725.3,4725.1,5.089]
[1755109135111,0.55,4725.2,4725.1,8.386]
[1755109135701,0.15985191,4725.6,4725.1,8.8387]
[1755109135937,0.02644719,4726.4,4725.2,2.1321]
[1755109136109,23.594243,4725.3,4725.1,5.089]
[1755109136309,2.75655568,4725.2,4725.1,5.089]
[1755109136539,2.75655568,4725.2,4725.1,8.392]
[1755109136903,0.55,4725.2,4725.1,8.392]
[1755109137238,0.55,4725.2,4725.1,10.5241]
[1755109138704,0.55,4725.2,4725.1,8.394]
[1755109139134,0.55,4725.2,4725.1,5.089]
[1755109139335,0.5764539,4725.2,4725.1,8.393]
[1755109139637,0.5764539,4725.2,4724.1,0.02]
[1755109139638,2.75655568,4725.2,4724.2,1.6794]
[1755109139943,0.55,4724.6,4724.3,3.305]
[1755109140241,0.55,4724.6,4722.3,1.6139]
[1755109140242,0.55,4724.4,4722.3,1.6139]
[1755109140448,0.02645894,4724.3,4723.2,3.305]
[1755109140612,17.5,4724.5,4723.3,1.6139]
[1755109140816,0.55,4723.9,4723.4,3.313]
[1755109141018,0.02646174,4723.8,4723.5,3.313]
[1755109141320,0.55,4723.7,4723.5,3.313]
[1755109141628,0.55,4723.7,4722.7,1.6139]
[1755109141822,0.55,4723.7,4723.6,5.07]
[1755109142032,2.75655568,4723.7,4723.6,5.07]
[1755109142325,2.75655568,4723.7,4721.1,0.02]
[1755109142326,0.55,4723.5,4721.3,1.6139]
[1755109142642,3.78175568,4723.7,4721.1,0.02]
[1755109142643,3.55,4722.1,4721.1,0.02]
[1755109142976,0.6556,4721.2,4721.1,0.02]
[1755109143346,2.1252,4721.2,4721.1,0.02]
[1755109143514,2.1252,4721.2,4721.1,1.624]
[1755109143715,0.55,4721.1,4719.6,1.6139]
[1755109143904,1.60167631,4721.2,4719.6,1.6139]
[1755109143905,0.55,4720.4,4719.6,1.6139]
[1755109144104,14.52647744,4721.0,4719.1,0.02]
[1755109144105,0.55,4720.2,4719.1,0.02]
[1755109144329,0.55,4720.8,4719.1,0.02]
[1755109144544,0.02647912,4720.7,4719.1,0.02]
[1755109144754,23.594243,4722.4,4720.2,2.0473]
[1755109144901,23.594243,4721.1,4720.3,2.0473]
[1755109145102,0.02647744,4721.0,4720.4,2.327]
[1755109145402,0.55,4721.0,4720.5,2.189]
[1755109145604,0.55,4721.0,4720.5,1.6139]
[1755109145805,0.55,4721.0,4720.6,5.3873]
[1755109146144,23.594243,4721.4,4720.7,2.0473]
[1755109146302,0.02647744,4721.0,4720.7,3.341]
[1755109146503,0.55,4721.2,4720.8,2.0473]
[1755109146763,0.55,4722.0,4720.8,2.0473]
[1755109146950,24.144243,4721.0,4720.9,2.168]
[1755109147346,0.55,4721.0,4720.9,2.168]
[1755109147774,0.55,4721.0,4720.9,4.2153]
[1755109147947,14.5,4722.1,4720.9,4.2153]
[1755109148151,2.23302751,4722.0,4720.9,2.0473]
[1755109148348,0.55,4721.9,4721.0,2.166]
[1755109148663,0.02647295,4721.8,4721.0,2.166]
[1755109149187,23.594243,4723.1,4721.1,2.0473]
[1755109149480,0.4441,4723.5,4721.2,5.3933]
[1755109149481,23.594243,4722.7,4721.2,5.3933]
[1755109149644,0.02646847,4722.6,4721.3,0.4334]
[1755109150374,0.55,4722.0,4721.4,3.345]
[1755109150676,0.02647239,4721.9,4721.4,3.345]
[1755109150856,0.55,4721.7,4720.8,0.4334]
[1755109151056,2.20655568,4721.8,4720.9,3.345]
[1755109151375,0.1602479,4722.8,4721.0,2.0473]
[1755109151562,0.02646734,4722.8,4721.4,5.074]
[1755109151740,0.18826889,4722.8,4721.5,3.35]
[1755109151941,0.02646734,4722.8,4721.6,2.0473]
[1755109152160,1.77911407,4722.8,4721.7,5.3973]
[1755109152369,1.75264673,4722.8,4721.8,0.4334]
[1755109152565,1.75264673,4722.8,4721.8,2.0473]
[1755109152771,14.5,4723.2,4721.7,3.35]
[1755109152772,0.02646566,4723.1,4721.9,2.0473]
[1755109152971,0.02646566,4723.1,4722.0,2.0473]
[1755109153372,0.1056,4722.3,4722.1,2.0473]
[1755109153579,0.1056,4722.3,4721.7,3.4556]
[1755109153790,0.1056,4722.3,4722.2,2.0473]
[1755109154088,0.1056,4722.5,4722.2,2.0473]
[1755109154254,0.55,4722.4,4722.3,2.0473]
[1755109155149,0.02,4723.4,4722.3,2.0473]
[1755109155478,0.1056,4722.9,4722.4,2.0473]
[1755109155668,0.02,4723.4,4722.5,2.0473]
[1755109155845,0.1056,4723.2,4722.6,0.1056]
[1755109156042,0.02,4723.4,4722.7,5.3983]
[1755109156284,0.02,4723.4,4722.8,2.0473]
[1755109156651,0.02,4723.4,4722.7,3.351]
[1755109156846,0.02,4723.4,4722.8,2.0473]
[1755109157263,0.02,4723.4,4722.7,3.351]
[1755109157469,0.02,4723.4,4722.9,2.0473]
[1755109157671,0.02,4723.4,4723.3,0.1056]
[1755109158195,0.02,4723.4,4723.3,5.5029]
[1755109158681,0.02,4723.4,4723.3,8.5029]
[1755109160876,0.02,4723.4,4723.3,8.4979]
[1755109161452,0.02,4723.4,4723.3,16.2069]
[1755109161977,0.02,4723.4,4723.3,12.8619]
[1755109162208,0.02,4723.4,4723.3,16.2059]
[1755109163315,0.02,4723.4,4723.3,17.82649]
[1755109163611,0.022,4723.4,4723.3,17.82649]
[1755109165106,0.022,4723.4,4723.3,12.8619]
[1755109165287,0.022,4723.4,4723.3,16.2039]
[1755109167114,0.022,4723.4,4723.3,13.5669]
[1755109167500,0.022,4723.4,4723.3,27.707306]
[1755109167702,0.022,4723.4,4723.3,5.1529]
[1755109167901,0.022,4723.4,4723.3,8.90159]
[1755109168209,0.022,4723.4,4723.3,8.3863]
[1755109169023,0.022,4723.4,4723.3,8.3883]
[1755109169321,0.022,4723.4,4723.3,30.431149]
[1755109169520,0.002,4723.9,4723.4,3.0]
[1755109169740,0.002,4723.9,4723.4,5.0841]
[1755109169888,0.002,4723.9,4723.6,3.0]
[1755109170089,0.002,4723.9,4723.8,3.0]
[1755109170494,0.002,4723.9,4723.8,5.0841]
[1755109171536,0.002,4723.9,4723.8,29.746321]
[1755109171706,0.002,4723.9,4723.8,29.01179]
[1755109171906,0.002,4723.9,4723.8,29.21321786]
[1755109173004,0.002,4723.9,4723.8,44.36550786]
[1755109173217,0.002,4723.9,4723.8,32.70313786]
[1755109173406,0.002,4723.9,4723.8,30.49816286]
[1755109173606,0.002,4723.9,4723.8,29.89378786]
[1755109173998,0.002,4723.9,4723.8,32.98415186]
[1755109174197,0.002,4723.9,4723.8,32.37131186]
[1755109174434,0.002,4723.9,4723.8,29.00493386]
[1755109174630,0.002,4723.9,4723.8,28.14752786]
[1755109174928,0.002,4723.9,4723.8,26.88639586]
[1755109175134,0.002,4723.9,4723.8,15.92830486]
[1755109175436,0.002,4723.9,4723.8,15.63824586]
[1755109176236,0.002,4723.9,4723.8,4.90740786]
[1755109176538,0.002,4723.9,4723.8,8.4181]
[1755109177241,0.002,4723.9,4723.8,4.6246]
[1755109177539,0.002,4723.9,4723.8,8.4171]
[1755109177736,0.002,4723.9,4723.8,8.5227]
[1755109179214,0.002,4723.9,4723.8,38.5227]
[1755109179526,0.002,4723.9,4723.8,40.08154368]
[1755109179902,0.002,4723.9,4723.8,16.71536368]
[1755109180222,0.002,4723.9,4723.8,25.04589068]
[1755109180425,0.002,4723.9,4723.8,21.74742868]
[1755109180820,0.002,4723.9,4723.8,21.28792868]
[1755109181211,0.002,4723.9,4723.8,10.26975568]
[1755109181418,0.002,4723.9,4723.8,47.64051286]
[1755109181929,0.002,4723.9,4723.8,45.7692]
[1755109182615,0.002,4723.9,4723.8,45.7632]
[1755109182940,0.002,4723.9,4723.8,22.053935]
[1755109183108,0.002,4723.9,4723.8,20.38707429]
[1755109183436,0.002,4723.9,4723.8,32.11520702]
[1755109184008,0.002,4723.9,4723.8,31.56173002]
[1755109184338,0.002,4723.9,4723.8,35.75412502]
[1755109185033,0.002,4723.9,4723.8,26.50493902]
[1755109185233,0.002,4723.9,4723.8,20.96771402]
[1755109185410,0.002,4723.9,4723.8,19.45753602]
[1755109185612,0.002,4723.9,4723.8,17.83293602]
[1755109185936,0.002,4723.9,4723.8,17.86771402]
[1755109186433,0.002,4723.9,4723.8,17.68017202]
[1755109186635,0.002,4723.9,4723.8,14.06547045]
[1755109186939,0.002,4723.9,4723.8,17.38847045]
[1755109187558,0.002,4723.9,4723.8,20.50449273]
[1755109188420,0.002,4723.9,4723.8,21.22988273]
[1755109188738,0.002,4723.9,4723.8,17.22720773]
[1755109189129,0.022,4724.4,4724.0,30.0]
[1755109189438,0.022,4725.4,4724.6,3.0]
[1755109189642,0.022,4725.4,4724.8,5.39836]
[1755109189812,0.022,4725.4,4724.8,5.50396]
[1755109190013,0.022,4725.4,4724.8,7.12856]
[1755109190440,0.022,4725.4,4724.8,11.244155]
[1755109190751,0.022,4725.4,4724.8,16.39222204]
[1755109191305,0.022,4725.4,4724.8,18.26692665]
[1755109191506,0.022,4725.4,4724.8,24.19695665]
[1755109191828,0.022,4725.4,4724.8,27.68293165]
[1755109192441,0.022,4725.4,4724.8,25.80822704]
[1755109192642,0.022,4725.4,4724.8,19.36372465]
[1755109192830,0.022,4725.4,4724.8,47.48902004]
[1755109193350,0.022,4725.4,4724.8,30.41515204]
[1755109193639,0.022,4725.4,4724.8,17.48702004]
[1755109193846,0.022,4725.4,4724.8,34.52949204]
[1755109194260,0.022,4725.4,4724.8,36.40435987]
[1755109194717,0.022,4725.4,4724.8,33.09868987]
[1755109195148,0.022,4725.4,4724.8,24.59536287]
[1755109195609,0.022,4725.4,4724.8,22.72049504]
[1755109195815,0.022,4725.4,4724.8,15.67399004]
[1755109196121,0.022,4725.4,4724.8,5.15142004]
[1755109196309,0.022,4725.4,4724.8,3.4246]
[1755109196511,0.022,4725.4,4724.8,0.1056]
[1755109196715,1.6529,4725.2,4724.8,3.4246]
[1755109196947,0.022,4725.4,4724.8,0.1056]
[1755109197250,1.6549,4724.9,4724.8,0.1056]
[1755109197436,1.82039,4724.9,4724.8,3.1056]
[1755109197746,1.82039,4724.9,4724.8,6.4246]
[1755109197962,1.6549,4724.9,4724.8,3.1056]
[1755109198117,1.6549,4724.9,4724.8,6.4246]
[1755109198516,2.2049,4724.9,4724.8,0.1056]
[1755109198845,0.55,4724.8,4724.5,0.1056]
[1755109199150,0.23105,4724.7,4724.6,6.317]
[1755109199444,0.23105,4724.7,4723.3,0.001]
[1755109199445,0.55,4724.6,4723.3,0.001]
[1755109199613,0.55,4724.6,4723.4,3.317]
[1755109199813,0.55,4724.4,4723.4,3.317]
[1755109200046,1.4645,4724.3,4723.3,0.001]
[1755109200349,1.4645,4724.3,4724.0,0.1056]
[1755109200648,0.76201,4724.3,4724.2,3.0]
[1755109200854,0.55,4724.3,4724.2,3.0]
[1755109201210,2.0145,4724.3,4724.2,3.0]
[1755109201415,0.55,4724.2,4724.0,0.1056]
[1755109201653,2.0145,4724.2,4724.1,8.384]
[1755109201950,2.0145,4724.2,4724.1,5.069]
[1755109201951,2.21595,4724.2,4724.1,5.069]
[1755109202115,2.21595,4724.2,4724.1,8.384]
[1755109202554,2.21595,4724.2,4724.1,8.385]
[1755109203155,2.21595,4724.2,4724.1,5.069]
[1755109203340,2.21595,4724.2,4724.1,8.384]
[1755109204118,2.32155,4724.2,4724.1,8.384]
[1755109205043,2.1201,4724.2,4724.1,8.384]
[1755109205856,0.1056,4724.2,4724.1,8.384]
[1755109206365,1.5701,4724.6,4724.1,8.384]
[1755109206651,0.1056,4724.6,4724.1,8.384]
[1755109207256,0.55,4724.5,4724.1,8.384]
[1755109207954,0.002,4724.2,4724.1,8.384]
[1755109208137,0.002,4724.2,4724.1,11.384]
[1755109208336,0.002,4724.2,4724.1,13.0423]
[1755109209450,0.002,4724.2,4724.1,11.4896]
[1755109210355,0.002,4724.2,4724.1,12.9966]
[1755109211564,0.002,4724.2,4724.1,15.6326]
[1755109212536,0.002,4724.2,4724.1,39.209018]